Workbook

Sheet 公开招聘
A1: 附件一： | B1: 漳州市交通发展集团有限公司2025年公开招聘考试最终成绩及入围体检、政审人员名单
A3: 序号 | B3: 报考单位 | C3: 报考岗位 | D3: 职位 代码 | E3: 招聘 人数 | F3: 姓名 | G3: 准考证号（笔试） | H3: 笔试成绩 | I3: 面试成绩 | J3: 最终成绩 （笔试50%+面试50%） | K3: 排名 | L3: 是否入围体检政审
A4: 1 | B4: 漳州市长运驾驶培训公司 | C4: 安技保障部干事 | D4: 44 | E4: 1 | F4: 杨景坤 | G4: 25181441527 | H4: 93.44 | I4: 78.22 | J4: =(H4+I4)/2 -> 85.83 | K4: 1 | L4: 是
A5: 2 | B5: 漳州市交发低空科技有限公司 | C5: 安全部安全干事 | D5: 39 | E5: 1 | F5: 袁立超 | G5: 25188391510 | H5: 90.24 | I5: 81.2 | J5: 85.72 | K5: 1 | L5: 是
A6: 3 | B6: 漳州市交发工贸集团有限公司 | C6: 安全部职员 | D6: 35 | E6: 1 | F6: 蔡宇豪 | G6: 25187352326 | H6: 96.08 | I6: 79.2 | J6: 87.64 | K6: 1 | L6: 是
A7: 4 | B7: 漳州市通景房地产开发有限公司 | C7: 安全管理部职员 | D7: 14 | E7: 1 | F7: 张丽燕 | G7: 25188143427 | H7: 86.24 | I7: 81.7 | J7: 83.97 | K7: 1 | L7: 是
A8: 5 | B8: 漳州市交发地产集团有限公司 | C8: 财务部职员 | D8: 13 | E8: 1 | F8: 周婷 | G8: 25187134226 | H8: 88.96 | I8: 79 | J8: 83.98 | K8: 1 | L8: 是
A9: 6 | B9: 漳州通裕资产管理运营有限公司 | C9: 财务部职员 | D9: 16 | E9: 1 | F9: 赖惠娜 | G9: 25231160711 | H9: 90.56 | I9: 81.82 | J9: 86.19 | K9: 1 | L9: 是
A10: 7 | B10: 漳州市通凌置业有限公司 | C10: 财务部职员 | D10: 19 | E10: 1 | F10: 林怡晖 | G10: 25180192919 | H10: 89.84 | I10: 81.4 | J10: 85.62 | K10: 1 | L10: 是
A11: 8 | B11: 漳州市交发地产集团有限公司 | C11: 党建人事部职员 | D11: 12 | E11: 2 | F11: 阙思源 | G11: 25187123830 | H11: 82.64 | I11: 84.2 | J11: 83.42 | K11: 1 | L11: 是
A12: 9 | F12: 朱晓莹 | G12: 25187123827 | H12: 84.96 | I12: 77.48 | J12: 81.22 | K12: 2 | L12: 是
A13: 10 | B13: 漳州市交通发展集团有限公司 | C13: 党委宣传部职员 | D13: 4 | E13: 1 | F13: 柯晨鑫 | G13: 25233040116 | H13: 85.52 | I13: 83.6 | J13: 84.56 | K13: 1 | L13: 是
A14: 11 | B14: 福建漳州诏安港务有限公司 | C14: 工程部职员 | D14: 10 | E14: 1 | F14: 汤良航 | G14: 25186104123 | H14: 91.12 | I14: 75.85 | J14: 83.485 | K14: 1 | L14: 是
A15: 12 | B15: 漳州市通福建筑工程有限公司 | C15: 工程管理部职员 | D15: 30 | E15: 1 | F15: 陈颖铮 | G15: 25186302813 | H15: 91.20 | I15: 79.3 | J15: 85.25 | K15: 1 | L15: 是
A16: 13 | B16: 漳州市交发低空科技有限公司 | C16: 工程与技术服务部工程技术人员 | D16: 9 | E16: 1 | F16: 杨立顺 | G16: 25231090221 | H16: 86.32 | I16: 80 | J16: =(I16+H16)/2 -> 83.16 | K16: 1 | L16: 是
A17: 14 | B17: 漳州通正勘测设计院有限公司 | C17: 公路设计部道路设计工程师 | D17: 24 | E17: 1 | F17: 龚锃阳 | G17: 25183244625 | H17: 83.92 | I17: 80 | J17: =(H17+I17)/2 -> 81.96 | K17: 1 | L17: 是
A18: 15 | B18: 漳州市铁路投资开发有限公司 | C18: 机电房建部工程技术人员 | D18: 57 | E18: 1 | F18: 陈清荣 | G18: 25188571125 | H18: 83.76 | I18: 80.3 | J18: =(I18+H18)/2 -> 82.03 | K18: 1 | L18: 是
A19: 16 | B19: 漳州市铁路投资开发有限公司 | C19: 机电房建部工程技术人员 | D19: 58 | E19: 1 | F19: 郭艺洪 | G19: 25188581107 | H19: 89.60 | I19: 83.5 | J19: =(I19+H19)/2 -> 86.55 | K19: 1 | L19: 是
A20: 17 | B20: 漳州市路通工程质量检测有限公司 | C20: 检测部工地试验室负责人 | D20: 27 | E20: 1 | F20: 陈添泉 | G20: 25184274430 | H20: 70.88 | I20: 74.9 | J20: =(H20+I20)/2 -> 72.89 | K20: 1 | L20: 是
A21: 18 | B21: 漳州市交发工贸集团有限公司 | C21: 经营部贸易专员 | D21: 34 | E21: 1 | F21: 谢锴靖 | G21: 25187342716 | H21: 89.20 | I21: 78.36 | J21: 83.78 | K21: 1 | L21: 是
A22: 19 | B22: 漳州市交发工贸集团有限公司 | C22: 经营部职员 | D22: 32 | E22: 1 | F22: 朱奕萱 | G22: 25187322512 | H22: 87.52 | I22: 78.38 | J22: 82.95 | K22: 1 | L22: 是
A23: 20 | B23: 漳州市通韵置业有限公司 | C23: 开发运营部职员 | D23: 15 | E23: 1 | F23: 李津 | G23: 25189153609 | H23: 78.80 | I23: 82.4 | J23: 80.6 | K23: 1 | L23: 是
A24: 21 | B24: 漳州市通凌置业有限公司 | C24: 开发运营部职员 | D24: 18 | E24: 1 | F24: 陈舒婕 | G24: 25180183413 | H24: 84.56 | I24: 81.2 | J24: 82.88 | K24: 1 | L24: 是
A25: 22 | B25: 漳州市通凌置业有限公司 | C25: 开发运营部主办 | D25: 20 | E25: 1 | F25: 方伟乐 | G25: 25180204503 | H25: 85.60 | I25: 79.9 | J25: 82.75 | K25: 1 | L25: 是
A26: 23 | B26: 漳州市通韵置业有限公司 | C26: 开发运营部主办 | D26: 8 | E26: 1 | F26: 肖锶琪 | G26: 25237080308 | H26: 88.88 | I26: 81.1 | J26: =(I26+H26)/2 -> 84.99 | K26: 1 | L26: 是
A27: 24 | B27: 漳州长运供应链运营有限公司 | C27: 生产部干事 | D27: 12 | E27: 1 | F27: 林杰斌 | G27: 25239120318 | H27: 84.96 | I27: 73.5 | J27: =(H27+I27)/2 -> 79.23 | K27: 1 | L27: 是
A28: 25 | B28: 福建漳州市长运集团有限公司技术设备分公司 | C28: 生产部干事 | D28: 47 | E28: 2 | F28: 叶子超 | G28: 25183471813 | H28: 90.88 | I28: 81.2 | J28: =(H28+I28)/2 -> 86.04 | K28: 1 | L28: 是
A29: 26 | B29: 漳州长运供应链运营有限公司 | C29: 生产部干事 | D29: 54 | E29: 1 | F29: 吴瑞培 | G29: 25187541114 | H29: 74.64 | I29: 79.92 | J29: =(I29+H29)/2 -> 77.28 | K29: 1 | L29: 是
A30: 27 | B30: 漳州市交发低空科技有限公司 | C30: 市场经营部经营干事 | D30: 01 | E30: 1 | F30: 李伟城 | G30: 25231010122 | H30: 82.56 | I30: 80.46 | J30: =(H30+I30)/2 -> 81.51 | K30: 1 | L30: 是
A31: 28 | B31: 漳州市交发低空科技有限公司 | C31: 市场经营部经营干事 | D31: 10 | E31: 1 | F31: 黄郁杰 | G31: 25231100101 | H31: 84.40 | I31: 78.24 | J31: 81.32 | K31: 1 | L31: 是
A32: 29 | B32: 漳州市交发低空科技有限公司 | C32: 市场经营部经营干事 | D32: 2 | E32: 1 | F32: 王培钰 | G32: 25231020130 | H32: 87.20 | I32: 85.8 | J32: 86.5 | K32: 1 | L32: 是
A33: 30 | B33: 漳州市交发海洋产业发展集团有限公司 | C33: 投资部职员 | D33: 02 | E33: 1 | F33: 苏泽瑜 | G33: 25182023929 | H33: 89.04 | I33: 78.34 | J33: 83.69 | K33: 1 | L33: 是
A34: 31 | B34: 漳州市交发海洋产业发展集团有限公司权属企业 | C34: 项目部职员 | D34: 03 | E34: 1 | F34: 胡震林 | G34: 25183033908 | H34: 91.60 | I34: 77.8 | J34: 84.7 | K34: 1 | L34: 是
A35: 32 | B35: 漳州市市政工程有限公司 | C35: 项目管理中心测量工程技术人员 | D35: 23 | E35: 1 | F35: 肖宇荣 | G35: 25182234607 | H35: 89.04 | I35: 78.9 | J35: 83.97 | K35: 1 | L35: 是
A36: 33 | B36: 漳州南太武渔港开发有限公司 | C36: 园区事务部职员 | D36: 6 | E36: 1 | F36: 黄一峰 | G36: 25235060517 | H36: 94.32 | I36: 80.26 | J36: =(I36+H36)/2 -> 87.29 | K36: 1 | L36: 是
A37: 34 | B37: 漳州市交发物流集团有限公司 | C37: 运营部职员 | D37: 11 | E37: 1 | F37: 何鑫颖 | G37: 25238110323 | H37: 66.80 | I37: 76.8 | J37: =(H37+I37)/2 -> 71.8 | K37: 1 | L37: 是
A38: 35 | B38: 漳州市通福建筑工程有限公司 | C38: 质量安全管理部职员 | D38: 29 | E38: 1 | F38: 方奕成 | G38: 25186294424 | H38: 85.92 | I38: 80.56 | J38: =(H38+I38)/2 -> 83.24 | K38: 1 | L38: 是
A39: 36 | B39: 漳州市通福建筑工程有限公司 | C39: 质量安全管理部职员 | D39: 31 | E39: 1 | F39: 游舒泓 | G39: 25186311314 | H39: 80.80 | I39: 80.2 | J39: =(H39+I39)/2 -> 80.5 | K39: 1 | L39: 是
A40: 37 | B40: 福建漳州市长运集团有限公司 | C40: 综合部干事 | D40: 51 | E40: 1 | F40: 林丽君 | G40: 25185511203 | H40: 80.08 | I40: 82.7 | J40: =(I40+H40)/2 -> 81.39 | K40: 1 | L40: 是
A41: 38 | B41: 漳州市交发低空科技有限公司 | C41: 综合部讲解员 | D41: 36 | E41: 1 | F41: 陈小源 | G41: 25188362601 | H41: 92.16 | I41: 78.2 | J41: =(H41+I41)/2 -> 85.18 | K41: 1 | L41: 是
A42: 39 | B42: 漳浦金瑞港务发展有限公司 | C42: 综合部职员 | D42: 04 | E42: 1 | F42: 黄鹏祺 | G42: 25184043924 | H42: 84.88 | I42: 79.2 | J42: 82.04 | K42: 1 | L42: 是
A43: 40 | B43: 福建漳州诏安港务有限公司 | C43: 综合部职员 | D43: 09 | E43: 1 | F43: 马晓娜 | G43: 25186094305 | H43: 87.76 | I43: 77.64 | J43: 82.7 | K43: 1 | L43: 是
A44: 41 | B44: 漳州市铁路投资开发有限公司 | C44: 综合部职员 | D44: 13 | E44: 1 | F44: 黄张龙 | G44: 25230130305 | H44: 86.24 | I44: 82 | J44: 84.12 | K44: 1 | L44: 是
A45: 42 | B45: 漳州市铁路投资开发有限公司 | C45: 综合部职员 | D45: 14 | E45: 1 | F45: 李雅婷 | G45: 25230140113 | H45: 75.20 | I45: 79.52 | J45: 77.36 | K45: 1 | L45: 是
A46: 43 | B46: 漳州通裕资产管理运营有限公司 | C46: 综合部职员 | D46: 15 | E46: 1 | F46: 黄欣如 | G46: 25231150906 | H46: 87.92 | I46: 81.9 | J46: 84.91 | K46: 1 | L46: 是
A47: 44 | B47: 漳州市通凌置业有限公司 | C47: 综合部职员 | D47: 17 | E47: 2 | F47: 谢如靖 | G47: 25180173702 | H47: 91.20 | I47: 81.42 | J47: 86.31 | K47: 1 | L47: 是
A48: 45 | F48: 李冰凝 | G48: 25180173713 | H48: 87.36 | I48: 84.2 | J48: 85.78 | K48: 2 | L48: 是
A49: 46 | B49: 漳州市通发房地产开发有限公司 | C49: 综合部职员 | D49: 21 | E49: 1 | F49: 王楠 | G49: 25181214807 | H49: 94.32 | I49: 80.94 | J49: 87.63 | K49: 1 | L49: 是
A50: 47 | B50: 漳州市交发物流集团有限公司 | C50: 综合部职员 | D50: 50 | E50: 1 | F50: 周婧 | G50: 25184501119 | H50: 85.44 | I50: 80.4 | J50: =(I50+H50)/2 -> 82.92 | K50: 1 | L50: 是
